Cogmind - Beta 11 @@@ ROGUE MODE // 2022.04.06 @ 20:09:40 Player: Nori Result: Destroyed by S-27 Virus with Autogun Performance ------------- Evolutions (5) 2500 Regions Visited (9) 1800 Robots Destroyed (27) 135 Value Destroyed (651) 651 Prototype IDs (31) 620 Alien Tech Used (0) 0 Bonus (800) 800 TOTAL SCORE: 6506 Bonus ------- Entered DSFs 500 Aligned with FarCom 300 Cogmind --------- Core Integrity 0/1000 Matter 253/300 Energy 84/100 System Corruption 7% Temperature Cool (0) Movement Core (50) Location -5/Factory Parts ------- > --- POWER (1) -------- (None) > --- PROPULSION (4) --- (None) > --- UTILITY (10) ----- Improved Core Shielding Advanced System Shield > --- WEAPON (2) ------- (None) > --- INVENTORY (5) ---- Medium Storage Unit Authchip [Processor] Authchip [Armor] Peak State ------------ > --- POWER ------------ Micro Nuclear Core > --- PROPULSION ------- Flying Fortress v7 > --- UTILITY ---------- Advanced Cooling System Large Storage Unit Advanced Sensor Array Improved Signal Interpreter Modified TNC Improved Utility Shielding Improved Light Armor Plating Centrium Light Armor Plating Advanced System Shield Advanced System Shield > --- WEAPON ----------- Advanced Beam Rifle Cooled Particle Cannon > --- INVENTORY -------- Micro Nuclear Core Cesium-ion Thruster Impulse Thruster Array Medium Storage Unit Authchip [Processor] Authchip [Processor] Authchip [Armor] Advanced System Restoration Module Supersonic Drone Bay Advanced Beam Rifle Cooled Particle Cannon [Rating: 98] Favorites ----------- Power Ion Engine Engine Ion Engine Power Core Micro Nuclear Core Propulsion Compact Wheel Wheel Compact Wheel Flight Unit Flying Fortress v7 Utility Modified TNC Device Improved Cooling System Storage Medium Storage Unit Processor Modified TNC Hackware Advanced System Shield Protection Improved Utility Shielding Weapon Light Assault Rifle Energy Gun Advanced Beam Rifle Energy Cannon Cooled Particle Cannon Ballistic Gun Light Assault Rifle Build | -11 -10 -10 -10 -9 -8 -7 -6 -6 -5 ------- Run | Scr Mat Min Exi Min Mat Fac Fac DSF Fac Slots Evolved 10 | . . . . . 4 2 2 . 2 Power . | . . . . . . . . . . Propulsion 2 | . . . . . 2 . . . . Utility 8 | . . . . . 2 2 2 . 2 Weapon . | . . . . . . . . . . Parts Attached 53 | 7 1 . 5 . 7 9 2 3 19 Power 5 | 1 . . . . 1 1 . . 2 Engine 2 | 1 . . . . 1 . . . . Core 3 | . . . . . . 1 . . 2 Reactor . | . . . . . . . . . . Propulsion 11 | 2 . . 2 . 1 . . . 6 Treads . | . . . . . . . . . . Leg . | . . . . . . . . . . Wheel 4 | 2 . . 2 . . . . . . Hover . | . . . . . . . . . . Flight 7 | . . . . . 1 . . . 6 Utility 27 | 1 1 . 2 . 5 4 2 3 9 Device 4 | . . . . . 1 1 . . 2 Storage 4 | 1 . . 1 . . . . 1 1 Processor 4 | . . . 1 . . 2 1 . . Hackware 4 | . . . . . . . . . 4 Protection 11 | . 1 . . . 4 1 1 2 2 Artifact . | . . . . . . . . . . Weapon 10 | 3 . . 1 . . 4 . . 2 Energy Gun 5 | 1 . . . . . 2 . . 2 Energy Cannon 1 | . . . . . . 1 . . . Ballistic Gun 4 | 2 . . 1 . . 1 . . . Ballistic Cannon . | . . . . . . . . . . Launcher . | . . . . . . . . . . Special Weapon . | . . . . . . . . . . Impact Weapon . | . . . . . . . . . . Slashing Weapon . | . . . . . . . . . . Piercing Weapon . | . . . . . . . . . . Special Melee Weapon . | . . . . . . . . . . Unidentified Prototypes 3 | . . . . . . 2 . . 1 Parts Lost 21 | . . 1 . . . 1 . . 19 Power 2 | . . . . . . . . . 2 Propulsion 6 | . . . . . . . . . 6 Utility 11 | . . 1 . . . 1 . . 9 Weapon 2 | . . . . . . . . . 2 Highest Loss Streak 12 | . . 1 . . . 1 . . 12 To Critical Strikes . | . . . . . . . . . . Average Slot Usage (%) 81 | . 96 96 96 100 71 75 80 80 70 Engine 7 | . 14 14 14 14 9 6 . . . Core 1 | . . . . . . . 6 6 4 Wheel 10 | . 28 28 28 28 . . . . . Flight 4 | . . . . . 9 7 6 6 6 Device 3 | . . . . . 7 2 6 6 6 Storage 8 | . 14 14 14 14 9 7 6 6 2 Processor 11 | . . . 10 14 9 15 20 20 13 Hackware 3 | . . . . . . . . . 11 Protection 11 | . 10 10 . . 10 19 20 20 12 Energy Gun 2 | . . . . . . 5 6 6 4 Energy Cannon 2 | . . . . . . 5 6 6 2 Ballistic Gun 12 | . 28 28 28 28 18 2 . . . Naked Turns . | . . . . . . . . . . Heaviest Build 48 | 13 16 16 18 17 28 37 40 45 48 Greatest Support 50 | 32 32 32 32 32 50 50 50 50 50 Greatest Overweight (x) 1 | . . . . . . . . . 1 Average Overweight (x) . | . . . . . . . . . . Largest Inventory Capacity 15 | 8 8 8 10 10 10 10 10 15 15 Average Capacity 9 | 6 8 8 9 10 10 10 10 13 10 Most Carried 14 | 3 7 7 9 9 9 10 9 12 14 Average Carried 7 | . 2 7 8 9 5 8 8 9 8 Final Capacity 15 | 8 8 8 10 10 10 10 10 15 5 Final Carried 12 | 1 7 7 9 9 7 10 8 12 3 Class Distribution -------------------- 83% | Mutant 9% | Hacker-Scout 6% | Hacker-Mutant Dominant Class ---------------- Mutant | -10/Materials Mutant | -10/Mines Mutant | -10/Exiles Mutant | -9/Mines Mutant | -8/Materials Mutant | -7/Factory Mutant | -6/Factory Mutant | -6/DSF Mutant | -5/Factory Resources | -11 -10 -10 -10 -9 -8 -7 -6 -6 -5 ----------- Run | Scr Mat Min Exi Min Mat Fac Fac DSF Fac Matter Collected 717 | 237 115 28 . . 102 150 20 30 35 Remotely . | . . . . . . . . . . Salvage Created 775 | . 136 47 . . 48 212 . 93 239 Parts 61 | . 19 4 . . 7 12 . 7 12 Haulers Intercepted 2 | . . . . . . 2 . . . Recyclers Shooed . | . . . . . . . . . . Parts Field Recycled . | . . . . . . . . . . Retrieved Matter . | . . . . . . . . . . Parts Self-Destructed . | . . . . . . . . . . Prevented . | . . . . . . . . . . Kills | -11 -10 -10 -10 -9 -8 -7 -6 -6 -5 ------- Run | Scr Mat Min Exi Min Mat Fac Fac DSF Fac Combat Hostiles Destroyed 25 | . 7 3 . . 3 2 . 2 8 Guns 20 | . 7 3 . . 3 . . 1 6 Cannons 5 | . . . . . . 2 . 1 2 Classes Destroyed 6 | . 2 . . . . 3 . 1 . Hauler 2 | . . . . . . 2 . . . Swarmer 19 | . 6 3 . . 3 . . . 7 Grunt 1 | . 1 . . . . . . . . Sentry 2 | . . . . . . 1 . . 1 Hunter 1 | . . . . . . . . 1 . Programmer 2 | . . . . . . 1 . 1 . Best Kill Streak 7 | . 7 3 . . 3 1 . 2 4 Combat Bots Only 7 | . 7 3 . . 3 1 . 2 4 Max Kills in Single Turn 1 | . 1 1 . . 1 1 . 1 1 Gunslinging . | . . . . . . . . . . Exploded . | . . . . . . . . . . Melee . | . . . . . . . . . . Uniques/NPCs Destroyed . | . . . . . . . . . . Combat | -11 -10 -10 -10 -9 -8 -7 -6 -6 -5 -------- Run | Scr Mat Min Exi Min Mat Fac Fac DSF Fac Damage Taken 3983 | . 270 108 . . 526 525 . 57 2497 Core 1093 | . 24 33 . . 8 21 . . 1007 Absorbed by Shields . | . . . . . . . . . . Redirected to Shielding 120 | . . . . . . 3 . . 117 Core Remaining (%) 94 | 100 . . . 77 98 97 . 100 . Volleys Fired 88 | . 18 7 . . 12 17 . 5 29 Largest 2 | . 2 2 . . 2 2 . 2 2 Hottest 151 | . 40 40 . . 40 151 . 151 91 Shots Fired 158 | . 36 14 . . 24 30 . 10 44 Gun 130 | . 36 14 . . 24 22 . 5 29 Cannon 28 | . . . . . . 8 . 5 15 Launcher . | . . . . . . . . . . Special . | . . . . . . . . . . Kinetic 92 | . 36 14 . . 24 18 . . . Thermal 66 | . . . . . . 12 . 10 44 Explosive . | . . . . . . . . . . Electromagnetic . | . . . . . . . . . . Robot Hit Streak 9 | . 6 8 . . 3 9 . 5 9 Robot Miss Streak 4 | . 4 2 . . 4 2 . 1 3 Penetration Max . | . . . . . . . . . . Secondary Targets 4 | . 2 2 . . . . . . . Max Gunslinging Chain 1 | . 1 1 . . . . . . . Shots Hit Robots 101 | . 19 9 . . 11 25 . 7 30 Core Hits 44 | . 11 4 . . 6 7 . 3 13 Critical Kills . | . . . . . . . . . . Critical Parts Destroyed . | . . . . . . . . . . Critical Strikes 6 | . . . . . . . . 1 5 Burn 6 | . . . . . . . . 1 5 Melee Attacks . | . . . . . . . . . . Impact . | . . . . . . . . . . Slashing . | . . . . . . . . . . Piercing . | . . . . . . . . . . Sneak Attacks . | . . . . . . . . . . Combat Hostiles . | . . . . . . . . . . Follow-up Attacks . | . . . . . . . . . . Damage Inflicted 1801 | . 204 91 . . 91 496 . 180 739 Guns 1098 | . 204 91 . . 91 197 . 115 400 Cannons 690 | . . . . . . 299 . 65 326 Explosions . | . . . . . . . . . . Melee . | . . . . . . . . . . Ramming 13 | . . . . . . . . . 13 Kinetic 498 | . 204 91 . . 91 112 . . . Thermal 1290 | . . . . . . 384 . 180 726 Explosive . | . . . . . . . . . . Electromagnetic . | . . . . . . . . . . Impact . | . . . . . . . . . . Slashing . | . . . . . . . . . . Piercing . | . . . . . . . . . . Highest Corruption 7 | . . . . . . 3 . 1 7 Average Corruption 1 | . . . . . . 1 . 1 2 Corruption Purged . | . . . . . . . . . . Corruption Blocked . | . . . . . . . . . . Effects 5 | . . . . . . 2 . . 3 Message Errors 2 | . . . . . . 1 . . 1 Matter Fused 1 | . . . . . . . . . 1 Heat Flow Errors 2 | . . . . . . 1 . . 1 Overload Shots 6 | . . . . . . 4 . 2 . Effects 2 | . . . . . . 2 . . . Energy Bleed 1 | . . . . . . 1 . . . Heat Surge 1 | . . . . . . 1 . . . Overflow Damage 3 | . . . . . . . . 3 . Projectiles 3 | . . . . . . . . 3 . Explosions . | . . . . . . . . . . Melee . | . . . . . . . . . . Knockbacks . | . . . . . . . . . . Impact . | . . . . . . . . . . Kinetic . | . . . . . . . . . . Secondary . | . . . . . . . . . . Self-Inflicted Damage 5 | . . . . . . . . . 5 Shots . | . . . . . . . . . . Rammed 6 | . . . . . . . . . 6 Targets Rammed 6 | . . . . . . . . . 6 Kicked . | . . . . . . . . . . Crushed . | . . . . . . . . . . Highest Temperature 351 | . 19 12 . . 93 351 . . 99 Average Temperature 71 | . 6 5 . . 43 131 . . 34 Received Heat Transfer 651 | . 30 21 . . 153 114 . . 333 Effects 1 | . . . . . . 1 . . . Short Circuit 1 | . . . . . . 1 . . . Siege Activations . | . . . . . . . . . . Robots Corrupted . | . . . . . . . . . . Combat Hostiles . | . . . . . . . . . . Parts Fried . | . . . . . . . . . . Impact Corruptions . | . . . . . . . . . . Robots Melted . | . . . . . . . . . . Combat Hostiles . | . . . . . . . . . . Parts Melted 4 | . . . . . . 1 . . 3 Heat Transferred 2306 | . . . . . . 459 . 293 1554 Parts Sabotaged . | . . . . . . . . . . Parts Stolen . | . . . . . . . . . . Parts Stripped . | . . . . . . . . . . Power Chain Reactions . | . . . . . . . . . . Missiles Intercepted . | . . . . . . . . . . Alert | -11 -10 -10 -10 -9 -8 -7 -6 -6 -5 ------- Run | Scr Mat Min Exi Min Mat Fac Fac DSF Fac Peak Influence 339 | . 230 159 . . 220 321 107 145 339 Initial 102 | . . 89 . . . 100 102 74 75 Average 150 | . 94 142 . . 87 178 106 118 194 Maximum Alert Level 1 | . 1 . . . 1 1 . . 1 Low Security (%) 68 | 100 67 100 . 100 73 68 100 100 53 Level 1 31 | . 32 . . . 26 31 . . 46 Level 2 . | . . . . . . . . . . Level 3 . | . . . . . . . . . . Level 4 . | . . . . . . . . . . Level 5 . | . . . . . . . . . . High Security . | . . . . . . . . . . Max Security . | . . . . . . . . . . Sterilizations 1 | . . . . . . . . 1 . Squads Dispatched 11 | . 2 . . . 1 5 . . 3 Investigation 1 | . . . . . . 1 . . . Extermination 2 | . . . . . . 1 . . 1 Reinforcement 8 | . 2 . . . 1 3 . . 2 Assault . | . . . . . . . . . . Garrison . | . . . . . . . . . . Intercept . | . . . . . . . . . . Searches Triggered . | . . . . . . . . . . Construction Impeded . | . . . . . . . . . . Haulers Reinforced 1 | . . . . . . 1 . . . Active Scanning Responses . | . . . . . . . . . . Cargo Convoy Interrupts . | . . . . . . . . . . Stealth | -11 -10 -10 -10 -9 -8 -7 -6 -6 -5 --------- Run | Scr Mat Min Exi Min Mat Fac Fac DSF Fac Distress Signals 4 | . 1 . . . 1 1 . . 1 Communications Jammed . | . . . . . . . . . . Distress Signals . | . . . . . . . . . . Times Spotted 108 | . 12 5 . . 17 18 . 9 47 Peak Tracking Total 19 | . 5 3 . . 11 7 . 8 19 Tactical Retreats 20 | . 1 . . . 2 5 . 2 10 Traps | -11 -10 -10 -10 -9 -8 -7 -6 -6 -5 ------- Run | Scr Mat Min Exi Min Mat Fac Fac DSF Fac Traps Triggered 6 | . . . . . 2 1 . 2 1 Indirectly . | . . . . . . . . . . Trap Hack Attempts . | . . . . . . . . . . Triggered . | . . . . . . . . . . Disarmed . | . . . . . . . . . . Reprogrammed . | . . . . . . . . . . Reused . | . . . . . . . . . . Traps Extracted . | . . . . . . . . . . Installed . | . . . . . . . . . . Triggered . | . . . . . . . . . . Machines | -11 -10 -10 -10 -9 -8 -7 -6 -6 -5 ---------- Run | Scr Mat Min Exi Min Mat Fac Fac DSF Fac Machines Disabled . | . . . . . . . . . . Max in Single Turn . | . . . . . . . . . . Machines Sabotaged . | . . . . . . . . . . Garrisons Compromised . | . . . . . . . . . . Overloaded Fab Kills . | . . . . . . . . . . Hacking | -11 -10 -10 -10 -9 -8 -7 -6 -6 -5 --------- Run | Scr Mat Min Exi Min Mat Fac Fac DSF Fac Machines Accessed 22 | . . . 5 1 1 6 1 . 8 Terminals 15 | . . . . 1 1 5 1 . 7 Fabricators . | . . . . . . . . . . Repair Stations 1 | . . . . . . . . . 1 Recycling Units . | . . . . . . . . . . Scanalyzers . | . . . . . . . . . . Garrison Access 1 | . . . . . . 1 . . . Total Hacks 68 | . . . 28 4 1 12 1 . 22 Successful 47 | . . . 28 3 . 4 1 . 11 Failed 21 | . . . . 1 1 8 . . 11 Catastrophic 8 | . . . . . . 3 . . 5 Database Lockouts . | . . . . . . . . . . Manual 6 | . . . 2 . . . . . 4 Terminals 36 | . . . . 4 1 9 1 . 21 Fabricators . | . . . . . . . . . . Repair Stations 1 | . . . . . . . . . 1 Recycling Units . | . . . . . . . . . . Scanalyzers . | . . . . . . . . . . Garrison Access 3 | . . . . . . 3 . . . Terminal Hacks 46 | . . . 28 3 . 4 1 . 10 Record 29 | . . . 27 2 . . . . . Part Schematic 4 | . . . . . . 1 . . 3 Prototype ID Bank 2 | . . . . . . . . . 2 Open DSF 3 | . . . . . . . 1 . 2 Alert Level 1 | . . . . . . 1 . . . Unreport Threat 1 | . . . . . . . . . 1 Dispatch Records 1 | . . . . . . 1 . . . Security Status 1 | . . . . . . 1 . . . Registered Components 1 | . . . . . . . . . 1 Zone Layout 2 | . . . . 1 . . . . 1 EX-Prototype ID Bank 1 | . . . 1 . . . . . . Fabricator Hacks . | . . . . . . . . . . Repair Station Hacks 1 | . . . . . . . . . 1 Scan Component 1 | . . . . . . . . . 1 Recycling Unit Hacks . | . . . . . . . . . . Scanalyzer . | . . . . . . . . . . Garrison Access Hacks . | . . . . . . . . . . Unauthorized Hacks . | . . . . . . . . . . Terminals . | . . . . . . . . . . Fabricators . | . . . . . . . . . . Repair Stations . | . . . . . . . . . . Recycling Units . | . . . . . . . . . . Scanalyzers . | . . . . . . . . . . Garrison Access . | . . . . . . . . . . Data Cores Recovered . | . . . . . . . . . . Used . | . . . . . . . . . . Hacking Detections 11 | . . . . 1 1 5 . . 4 Full Trace Events 2 | . . . . 1 . 1 . . . Feedback Events . | . . . . . . . . . . Feedback Blocked . | . . . . . . . . . . Robot Schematics Acquired . | . . . . . . . . . . Robots Built . | . . . . . . . . . . Authchips . | . . . . . . . . . . Time . | . . . . . . . . . . Total Robot Build Rating . | . . . . . . . . . . Part Schematics Acquired 4 | . . . . . . 1 . . 3 Parts Built . | . . . . . . . . . . Authchips . | . . . . . . . . . . Time . | . . . . . . . . . . Total Part Build Rating . | . . . . . . . . . . Parts Repaired . | . . . . . . . . . . Time . | . . . . . . . . . . Parts Recycled . | . . . . . . . . . . Recycled Matter . | . . . . . . . . . . Retrieved Matter . | . . . . . . . . . . Retrieved Components . | . . . . . . . . . . Parts Scanalyzed . | . . . . . . . . . . Part Schematics Acquired . | . . . . . . . . . . Parts Damaged . | . . . . . . . . . . Bothacking | -11 -10 -10 -10 -9 -8 -7 -6 -6 -5 ------------ Run | Scr Mat Min Exi Min Mat Fac Fac DSF Fac Used RIF Installer . | . . . . . . . . . . Robots Hacked . | . . . . . . . . . . Non-combat . | . . . . . . . . . . Combat . | . . . . . . . . . . Robot Hacks Applied . | . . . . . . . . . . Relay Couplers Released . | . . . . . . . . . . Fabnet Peak Effective % . | . . . . . . . . . . Robots Rewired . | . . . . . . . . . . Allies Hacked . | . . . . . . . . . . Hacks Repelled . | . . . . . . . . . . Allies | -11 -10 -10 -10 -9 -8 -7 -6 -6 -5 -------- Run | Scr Mat Min Exi Min Mat Fac Fac DSF Fac Total Allies . | . . . . . . . . . . Largest Group . | . . . . . . . . . . Highest-Rated Group . | . . . . . . . . . . Highest-Rated Ally . | . . . . . . . . . . Total Orders 1 | . . . . . 1 . . . . EXPLORE 1 | . . . . . 1 . . . . Ally Attacks . | . . . . . . . . . . Total Damage . | . . . . . . . . . . Kills . | . . . . . . . . . . Allies Corrupted . | . . . . . . . . . . Allies Melted . | . . . . . . . . . . Intel | -11 -10 -10 -10 -9 -8 -7 -6 -6 -5 ------- Run | Scr Mat Min Exi Min Mat Fac Fac DSF Fac Robot Analysis Total . | . . . . . . . . . . Derelict Logs Recovered . | . . . . . . . . . . Drone Launches 1 | . . . . . 1 . . . . Drone Recoveries . | . . . . . . . . . . Exploration | -11 -10 -10 -10 -9 -8 -7 -6 -6 -5 ------------- Run | Scr Mat Min Exi Min Mat Fac Fac DSF Fac Turns Passed 2586 | 51 273 89 563 28 223 533 23 106 697 Spaces Moved 3423 | 38 211 70 552 29 297 920 42 116 1148 Core 87 | 5 . . . . . . . . 82 Treads . | . . . . . . . . . . Legs . | . . . . . . . . . . Wheels 895 | 33 211 70 552 29 . . . . . Hover . | . . . . . . . . . . Flight 2441 | . . . . . 297 920 42 116 1066 Fastest Speed 37 | 50 100 100 100 100 50 50 50 50 37 Average Speed 62 | 93 100 100 100 100 50 50 50 50 48 Slowest Speed 117 | 100 100 100 100 100 50 50 50 50 117 Overloaded Moves . | . . . . . . . . . . Propulsion Burnouts . | . . . . . . . . . . Robots Hopped 40 | . . . . . 4 10 . . 26 Cave-ins Triggered . | . . . . . . . . . . Exploration Rate (%) 40 | 4 49 30 91 17 44 27 1 95 43 Regions Visited 9 Branch Regions 3 Pre-discovered Areas 1 | . . . 1 . . . . . . Known Exits Taken 1 | . . . . . . . 1 . . Unknown Exits Taken 7 | 1 1 1 1 1 1 1 . . . Scrap Searched . | . . . . . . . . . . Spaces Dug . | . . . . . . . . . . Terrain Destroyed 3 | . . . . . . . . 2 1 Melee . | . . . . . . . . . . Projectile 3 | . . . . . . . . 2 1 AOE . | . . . . . . . . . . Terrain Rammed . | . . . . . . . . . . Walls Destroyed . | . . . . . . . . . . Machines Disabled . | . . . . . . . . . . Actions | -11 -10 -10 -10 -9 -8 -7 -6 -6 -5 --------- Run | Scr Mat Min Exi Min Mat Fac Fac DSF Fac Total 3683 | 53 240 76 562 28 348 957 43 153 1223 Wait 50 | . 4 . . . 25 1 . 1 19 Move 3339 | 37 210 69 551 28 289 899 41 115 1100 Hop 35 | . . . . . 3 10 . . 22 Pick Up 60 | 8 7 . 3 . 8 14 . 7 13 Fast Attach . | . . . . . . . . . . Attach 35 | 6 1 . 1 . 5 4 2 . 16 Detach 4 | . . . . . . . . . 4 Swap 18 | 1 . . 4 . 2 5 . 3 3 Drop 30 | 1 . . 3 . 4 7 . 4 11 Fire 88 | . 18 7 . . 12 17 . 5 29 Melee . | . . . . . . . . . . Ram 6 | . . . . . . . . . 6 Kick . | . . . . . . . . . . Crush . | . . . . . . . . . . Escape Stasis 18 | . . . . . . . . 18 . Rewire . | . . . . . . . . . . Trap . | . . . . . . . . . . Miscellaneous . | . . . . . . . . . . Route ------- -11/Scrapyard -10/Materials -10/Mines -10/Exiles (discovered 2 exits: *Min x2) -9/Mines -8/Materials -7/Factory -6/Factory -6/DSF -5/Factory (discovered 1 exit: *Upp) History --------- Turn | Location | Event 25 | -11/Scrapyard | Discovered new exit (range 16) 52 | -11/Scrapyard | Entered Materials 267 | -10/Materials | Destroyed 7 combat bots 292 | -10/Materials | Discovered new exit (range 16) 313 | -10/Materials | Build established: Mutant 325 | -10/Materials | Entered Mines 410 | -10/Mines | Deemed a non-threat by the Exiles lab entrance 410 | -10/Mines | Discovered new exit (range 5) 414 | -10/Mines | Entered Exiles 427 | -10/Exiles | Discovered new exit (range 15) 438 | -10/Exiles | Met 8R-AWN 455 | -10/Exiles | Met EX-HEX 488 | -10/Exiles | Met EX-BIN 502 | -10/Exiles | Aligned with FarCom system 503 | -10/Exiles | Given EX-Vault access code 545 | -10/Exiles | Opened EX-Vault 555 | -10/Exiles | Found Modified TNC 559 | -10/Exiles | Found Supersonic Drone Bay 570 | -10/Exiles | Found Flying Fortress v7 601 | -10/Exiles | Warned to stay clear of 0b10 Research branches 631 | -10/Exiles | Met EX-DEC 653 | -10/Exiles | Learned location of Zion (-7) 700 | -10/Exiles | Discovered new exit (range 14) 781 | -10/Exiles | Visited The Gauntlet 977 | -10/Exiles | Stole three prototypes: Modified TNC, Flying Fortress v7, Supersonic Drone Bay 977 | -10/Exiles | Entered Mines 996 | -9/Mines | Discovered new exit (range 9) 1005 | -9/Mines | Entered Materials 1005 | -8/Materials | Evolved 4 slots: Propulsion x2, Utility x2 1223 | -8/Materials | Discovered new exit (range 3) 1228 | -8/Materials | Entered Factory 1228 | -7/Factory | Evolved 2 slots: Utility x2 1230 | -7/Factory | FarCom data flow suspended 1713 | -7/Factory | Discovered new exit (range 10) 1761 | -7/Factory | Entered another Factory area 1761 | -6/Factory | Evolved 2 slots: Utility x2 1765 | -6/Factory | Identified exit to DSF 1784 | -6/Factory | Entered DSF 1784 | -6/DSF | Encountered a pitched battle between 0b10 and Warlord forces 1788 | -6/DSF | P-60 Hacker assimilated allied LD-BPH(l) 1837 | -6/DSF | Sterilization system engaged 1856 | -6/DSF | Discovered new exit (range 14) 1857 | -6/DSF | Ambient heat levels rising (+10) 1862 | -6/DSF | Identified exit to Factory 1872 | -6/DSF | Ambient heat levels rising (+10) 1887 | -6/DSF | Ambient heat levels rising (+10) 1890 | -6/DSF | Entered Factory 1890 | -5/Factory | Evolved 2 slots: Utility x2 2174 | -5/Factory | Discovered new exit (range 6) 2177 | -5/Factory | Identified exit to Upper Caves 2356 | -5/Factory | Lost 3 parts (1p1n1w) 2539 | -5/Factory | Core integrity fell below 50% 2565 | -5/Factory | Core integrity fell below 20% 2570 | -5/Factory | Lost 12 parts (1p5n5u1w) 2587 | -5/Factory | Destroyed by S-27 Virus with Autogun Last Messages --------------- 02539_ Modified TNC destroyed. 02540_ Slammed into G-50 Soldier. 02541_ Slammed into S-27 Virus. 02542_ Slammed into Y-64 Sentinel. 02542_ K-01 Serf collects debris. 02542_ P-70 Sage resets G-50 Soldier, system corruption cleaned. 02543_ Penetrated by Slug. 02550_ K-01 Serf cleans the Manufacturing Mainframe. 02556_ System corrupted: Heat flow error (+139). 02560_ Manufacturing Mainframe disabled. 02575_ Slammed into S-27 Virus. 02575_ Adv. System Shield destroyed. 02575_ System corrupted by crushing effect (+2). 02575_ Chain reaction triggered in Mic. Fission Core. 02575_ P-70 Sage destroyed. 02575_ Imp. Signal Interpreter destroyed. 02576_ Slammed into S-27 Virus. 02578_ Adv. Hacking Suite destroyed. 02585_ Acquired Imp. Core Shielding. 02587_ System corrupted: Matter fused (-10). Map ----- +----------------------------------------------------+ | ?# # """" """ #???? | | ?# # """" """" #???? | | ?# # #???? | | ?# #######/######???? | | ?#########???# ######## | | ?????????????# | | ?????????????# | | ?????????????# | | ?????????????# ######## | | ?????????????## ##??????? | | ??????????????# #???????? | | ??????????????# #???????? | | ??????????????# #???????? | | ??????????????# #???????? | | ########??????# #???????? | | # #?????#" #???????? | | # """ ######""%! #???????? | | # """ / ! #???????? | | # """ # #???????? | | # p # #???????? | | #ss""" # #???????? | | # """ + #???????? | | # """ # #???????? | | # ####/####+##???????? | | # # #????????? | | # @ # #????????? | | # !! # """ """ #????????? | | # !! # """ """ #????????? | | # !! # """ """ #????????? | | ######## #????????? | | ???????# #????????? | | ???????# #????????? | | ???????###########????????? | | ??????????????????????????? | | ??????????????????????????? | | ??????????????????????????? | | ??????????????????????????? | | ??????????????????????????? | | ??????????????????######### | | ??????????????????# | | ??????????????????# | | ??????????????????# | | ??????????????????# | | ??????????????????# | | ??????????????????# | | ??????????????????# | | ??????????????????# | | ??????????????????# | | ??????????????????# !! | | ??????????????????# !! | +----------------------------------------------------+ Best States ------------- Heat Dissipation 71 Energy Generation 15 Energy Capacity 250 Matter Stores 300 Matter Capacity 300 Sight Range 16 Robot Scan Range 16 Terrain Scan Density 10 Armor Coverage 450 Utility Shielding 66 Evasion (%) 62 Targeting Accuracy 6 Offensive Hacking 14 Defensive Hacking 28 Authchip Count 3 Item Schematics ----------------- Linear Gravjet | -7/Factory | Hacked Impulse Thruster Array | -5/Factory | Hacked Adv. Powered Armor | -5/Factory | Hacked Adv. Hacking Suite | -5/Factory | Hacked Robot Schematics ------------------ None Fabricated ------------ Nothing Alien Tech Used ----------------- None Achievements -------------- None Challenges ------------ None Game ------ Seed WeldingLinearEdition Manual? 0 Play Time 00:58:32 Cumulative 127.5 hours Start 2022.04.06 @ 18:09:05 End 2022.04.06 @ 20:09:40 Sessions 1 Manual Loads 0 Difficulty Rogue Special Mode None Game No. 77 Rogue 77 Adventurer 0 Explorer 0 Win Type - Total 2 Types 0/0/0/2/0/0/0/0/0 Lore% 40 Gallery% 57 Achievement% 44 Wizard Run 0 Options --------- ASCII 0 Keyboard 0 Movement Numpad Keybinds 0 Fullscreen 2 Font 20/SmallcapsGlow Map View 66x50 Tactical HUD 1 Map Filters NONE Filters NONE Steam 1 RUN: 470730cc-26a0-4b31-bb3c-e8786621eaa3